bitfinex/quotes_ETHUSD_20251218
["timestamp","ask_amount","ask_price","bid_price","bid_amount"]
[1766073105152,4.7327,2969.5,2968.8,0.001]
[1766073106024,0.33667884,2970.1,2968.9,6.73649584]
[1766073106229,4.7327,2970.1,2969.1,4.8845]
[1766073106842,4.7327,2970.1,2969.1,11.6204926]
[1766073107038,0.46438023,2970.3,2969.2,0.46438023]
[1766073107039,3.0632,2970.2,2969.2,0.46438023]
[1766073107334,4.7327,2970.1,2969.2,0.46438023]
[1766073107538,0.553,2970.3,2969.2,5.34888023]
[1766073107733,4.7327,2970.4,2969.3,4.39848728]
[1766073107962,4.7327,2970.4,2969.3,6.09298728]
[1766073108659,5.2857,2970.4,2969.3,6.09298728]
[1766073108957,5.2857,2970.4,2969.5,4.8845]
[1766073108958,0.553,2970.4,2969.5,4.8845]
[1766073109149,0.553,2970.4,2969.6,3.19]
[1766073109346,0.002,2970.5,2970.0,1.6945]
[1766073109560,0.002,2970.5,2970.0,4.8845]
[1766073109776,5.2857,2971.2,2970.2,4.8845]
[1766073109944,5.2857,2971.2,2970.3,3.19]
[1766073110457,0.66098508,2971.7,2970.3,3.19]
[1766073110772,4.7347,2971.7,2970.8,6.73219334]
[1766073110983,0.002,2971.7,2970.8,6.73219334]
[1766073111139,3.36581055,2972.9,2971.3,3.19]
[1766073111140,3.0632,2972.8,2971.3,3.19]
[1766073111345,4.7327,2972.6,2971.4,4.8845]
[1766073111843,5.2857,2972.6,2971.2,0.553]
[1766073112070,5.2857,2972.6,2971.5,0.46438023]
[1766073112269,0.553,2972.6,2971.7,1.6945]
[1766073112478,0.002,2972.9,2971.8,1.72814963]
[1766073112644,0.002,2972.9,2972.0,4.8845]
[1766073112850,0.002,2972.9,2972.4,3.19]
[1766073113062,0.002,2972.9,2972.2,6.72902226]
[1766073113063,4.7327,2973.6,2972.6,4.8845]
[1766073113262,5.20597,2973.5,2972.5,0.553]
[1766073114361,5.20597,2973.5,2972.3,0.46438023]
[1766073114362,0.47327,2973.5,2972.3,0.46438023]
[1766073114572,0.553,2973.6,2972.4,4.8845]
[1766073115080,4.7327,2973.5,2972.4,4.8845]
[1766073115280,0.86988423,2973.5,2972.0,3.36463891]
[1766073115583,2.13388023,2973.2,2972.1,3.36457643]
[1766073115743,1.07270802,2973.1,2972.1,3.36457643]
[1766073115939,1.07270802,2973.1,2972.0,4.8845]
[1766073116145,1.07270802,2973.1,2971.7,0.46438023]
[1766073116374,3.0632,2972.8,2971.7,3.19]
[1766073116674,1.01738023,2973.2,2972.2,3.19]
[1766073116988,0.46638023,2973.5,2972.5,3.19]
[1766073117280,0.35295802,2973.4,2972.6,3.19]
[1766073117495,3.0632,2973.2,2972.4,0.553]
[1766073117643,0.35295802,2973.4,2972.4,0.553]
[1766073117837,1.6695,2973.0,2972.1,3.91761803]
[1766073118081,1.6695,2973.0,2972.2,3.36444328]
[1766073118287,3.0632,2973.1,2972.3,3.36438695]
[1766073118445,0.36162,2973.0,2972.1,3.743]
[1766073118975,4.7327,2972.9,2971.7,3.82937786]
[1766073119179,4.7327,2972.9,2971.7,1.6945]
[1766073119381,4.7327,2972.8,2971.9,0.46438023]
[1766073119679,0.36162,2973.0,2971.8,3.36492977]
[1766073119680,4.7327,2972.5,2971.8,0.46438023]
[1766073119844,4.7327,2972.5,2971.7,0.553]
[1766073119845,0.47327,2972.4,2971.7,0.553]
[1766073120046,0.46438023,2972.9,2971.7,0.553]
[1766073120350,2.02245802,2973.4,2972.3,3.19]
[1766073120678,4.7327,2973.3,2972.3,3.19]
[1766073120843,0.35295802,2973.4,2972.1,0.553]
[1766073121044,3.2843,2972.9,2972.1,0.553]
[1766073121281,4.9437,2972.9,2971.9,0.46438023]
[1766073121465,1.6594,2973.3,2972.1,3.3646241]
[1766073121667,1.6594,2973.3,2971.7,3.36504163]
[1766073121668,0.002,2973.5,2972.3,1.7046]
[1766073121874,0.002,2973.5,2972.7,3.0791]
[1766073122047,0.002,2973.5,2972.7,4.7837]
[1766073122247,0.002,2973.5,2972.7,1.7046]
[1766073122447,0.002,2973.5,2972.8,1.7046]
[1766073122665,0.002,2973.5,2972.9,3.0791]
[1766073123047,0.002,2973.5,2973.0,3.36360578]
[1766073123245,0.002,2974.1,2973.3,1.7046]
[1766073123474,0.002,2974.1,2973.1,1.01738023]
[1766073123650,0.002,2974.1,2973.2,3.0791]
[1766073123978,0.002,2974.1,2973.1,1.01738023]
[1766073123979,1.6614,2974.1,2973.1,1.01738023]
[1766073124171,4.9457,2974.1,2973.1,1.01738023]
[1766073124860,0.552,2974.0,2973.2,3.0791]
[1766073125064,0.552,2974.0,2973.3,3.0791]
[1766073125377,0.552,2974.0,2973.4,3.36315329]
[1766073125759,0.554,2974.1,2973.4,3.36315329]
[1766073126396,0.002,2974.7,2973.6,3.0791]
[1766073126610,5.4977,2974.7,2973.5,0.552]
[1766073126755,1.6594,2974.2,2973.3,3.36325448]
[1766073127100,0.552,2974.1,2973.3,3.36325448]
[1766073127386,0.552,2974.1,2973.2,3.36330179]
[1766073127551,3.36184021,2974.6,2973.2,0.46438023]
[1766073127747,1.6594,2974.3,2973.2,0.46438023]
[1766073127953,1.6594,2974.3,2973.4,6.44224792]
[1766073128184,0.54957,2974.3,2973.4,6.44224792]
[1766073128356,3.2843,2974.4,2973.4,3.0791]
[1766073128556,1.6594,2974.1,2973.4,3.36312189]
[1766073128775,4.9437,2974.1,2973.4,3.36312189]
[1766073128986,1.6594,2974.1,2973.4,3.36312189]
[1766073129191,3.8363,2974.4,2973.4,6.72627518]
[1766073129356,0.54957,2974.3,2973.4,3.36312189]
[1766073129667,0.552,2974.5,2973.6,3.0791]
[1766073130053,0.552,2974.5,2973.5,1.7046]
[1766073130054,5.4957,2974.5,2973.5,1.7046]
[1766073130249,5.4957,2974.5,2973.5,4.7837]
[1766073130680,4.9437,2974.5,2973.5,4.7837]
[1766073130883,0.552,2974.4,2973.6,1.7046]
[1766073131092,0.002,2974.7,2973.7,3.0791]
[1766073131390,0.002,2974.7,2973.8,3.36270092]
[1766073131587,0.002,2974.7,2973.7,3.6311]
[1766073131896,0.002,2974.7,2973.8,3.0791]
[1766073132056,0.002,2974.7,2973.8,4.7837]
[1766073132267,0.002,2974.7,2974.2,3.0791]
[1766073132491,0.002,2974.3,2973.9,1.20613151]
[1766073132799,0.002,2974.7,2973.9,4.33713151]
[1766073133701,0.002,2974.7,2973.9,3.131]
[1766073134191,4.7378,2974.5,2973.7,0.552]
[1766073134800,4.7378,2974.5,2973.7,3.91480382]
[1766073135096,4.7378,2974.5,2973.7,3.36280382]
[1766073135298,0.552,2974.4,2973.7,3.36280382]
[1766073135601,0.552,2974.4,2973.6,3.36289886]
[1766073135807,0.552,2974.4,2973.5,6.95839232]
[1766073135968,0.552,2974.4,2973.5,3.59538023]
[1766073136172,0.552,2974.4,2973.5,6.95841646]
[1766073136393,1.128378,2974.4,2973.5,6.95841646]
[1766073137098,1.128378,2974.4,2973.5,11.92935664]
[1766073137265,1.128378,2974.4,2973.4,0.552]
[1766073137463,4.7378,2974.2,2973.2,0.46438023]
[1766073137766,0.46438023,2974.3,2972.7,0.22576]
[1766073137966,0.46438023,2974.3,2972.6,3.683]
[1766073137967,3.1184,2974.0,2972.6,3.683]
[1766073138207,5.2898,2973.9,2972.9,0.46438023]
[1766073138436,5.2898,2973.9,2972.7,4.7389]
[1766073138570,0.552,2974.0,2973.3,3.131]
[1766073138909,1.6194,2973.4,2972.3,6.49537778]
[1766073139077,4.7378,2973.2,2972.4,0.64953778]
[1766073139477,1.6194,2973.1,2972.1,3.3645538]
[1766073139709,0.552,2973.3,2972.1,3.3645538]
[1766073140002,4.7378,2972.9,2972.1,0.46438023]
[1766073140497,2.1714,2972.8,2972.1,0.46438023]
[1766073140703,1.6194,2972.6,2971.9,0.001]
[1766073140903,4.95494,2972.6,2971.9,0.001]
[1766073141271,4.7378,2972.6,2971.9,0.001]
[1766073142308,3.1184,2972.5,2971.9,0.001]
[1766073142602,5.2898,2972.4,2971.6,3.36512963]
[1766073142907,4.7378,2972.4,2971.7,3.82940995]
[1766073143073,4.7378,2972.4,2971.7,4.21235095]
[1766073143401,0.552,2972.5,2971.7,3.74799461]
[1766073143618,3.3634086,2973.2,2971.7,3.74801822]
[1766073143818,1.6194,2972.7,2971.7,4.21232948]
[1766073144021,0.552,2972.6,2971.8,3.131]
[1766073144324,0.552,2972.6,2971.8,4.36263657]
[1766073144485,1.6194,2973.1,2971.9,1.01638023]
[1766073144685,0.552,2973.3,2972.3,4.7389]
[1766073144892,1.6194,2973.1,2971.9,5.75528023]
[1766073145117,4.7378,2972.9,2971.9,5.75528023]
[1766073145310,1.6194,2972.8,2972.0,1.16307191]
[1766073145511,3.1184,2972.9,2972.0,1.16307191]
[1766073145706,3.1184,2972.9,2972.0,4.52775528]
[1766073145707,3.6704,2972.9,2972.0,4.52775528]
[1766073145909,1.6194,2973.1,2972.0,7.89249283]
[1766073146111,0.5512,2973.0,2972.1,3.131]
[1766073146311,0.5512,2973.0,2972.2,1.26313928]
[1766073146511,1.6194,2974.3,2972.4,1.6079]
[1766073146698,1.6194,2974.1,2973.0,4.7389]
[1766073146904,1.6194,2974.1,2973.1,5.20328023]
[1766073147112,3.1184,2974.3,2973.2,3.131]
[1766073147317,3.1184,2974.3,2973.3,3.60489]
[1766073147318,0.552,2974.2,2973.3,3.60489]
[1766073147500,0.552,2974.3,2973.4,3.131]
[1766073147709,5.2898,2974.3,2973.4,3.131]
[1766073147992,4.7378,2974.2,2973.3,0.47389]
[1766073148200,1.6194,2974.1,2973.1,0.46438023]
[1766073148408,1.6194,2974.1,2973.3,3.36320342]
[1766073148617,1.6194,2974.1,2973.1,0.46438023]
[1766073148817,4.7378,2974.1,2973.1,3.8277781]
[1766073149015,4.7378,2974.1,2973.2,3.36334339]
[1766073149220,4.7378,2974.1,2973.3,3.74596754]
[1766073149627,3.1184,2973.7,2972.0,3.82969168]
[1766073149827,3.1184,2973.1,2972.0,0.69869168]
[1766073150030,4.7378,2972.9,2971.9,0.001]
[1766073150231,0.552,2972.8,2971.9,0.001]
[1766073150601,0.552,2972.8,2972.0,3.36467405]
[1766073151004,0.552,2972.8,2972.0,4.09294978]
[1766073151245,0.552,2972.8,2972.1,3.36462326]
[1766073151397,0.552,2972.8,2972.0,0.72826102]
[1766073152232,0.552,2972.8,2971.9,0.001]
[1766073152434,1.6194,2972.6,2971.6,3.36511409]
[1766073152597,3.1184,2972.6,2971.6,0.46438023]
[1766073152802,3.1184,2972.6,2971.7,0.46438023]
[1766073152803,1.6194,2972.5,2971.7,0.46438023]
[1766073153010,0.552,2972.4,2971.7,3.36506194]
[1766073153306,0.552,2972.5,2971.9,3.36479634]
[1766073153520,5.2898,2972.5,2971.7,0.46438023]
[1766073153724,5.2898,2972.5,2971.7,3.36506802]
[1766073153942,1.08098,2972.5,2971.4,1.01638023]
[1766073154107,1.6194,2972.3,2971.7,3.36506795]
[1766073154312,0.552,2972.4,2971.7,6.73014517]
[1766073154760,1.6194,2972.7,2971.7,6.73014517]
[1766073154947,0.552,2972.9,2972.1,4.7389]
[1766073155640,5.2888,2973.2,2972.1,4.7389]
[1766073155853,4.7378,2973.1,2972.3,3.36439794]
[1766073156036,4.7378,2973.1,2972.3,6.72879588]
[1766073156340,0.405504,2974.0,2972.3,6.72879588]
[1766073156341,4.7378,2973.4,2972.3,6.72879588]
[1766073156529,3.36276781,2973.8,2972.3,6.72879588]
[1766073156530,1.6194,2973.8,2972.3,6.72879588]
[1766073156729,4.7378,2973.8,2972.7,3.131]
[1766073156929,3.1184,2973.4,2972.6,0.551]
[1766073157135,3.1184,2973.4,2972.4,0.46438023]
[1766073157332,5.2888,2973.5,2972.4,0.46438023]
[1766073157716,5.2888,2973.5,2972.6,6.7281168]
[1766073158638,4.7378,2973.5,2972.6,6.7281168]
[1766073158838,5.2888,2973.5,2972.7,1.45029191]
[1766073159037,0.002,2973.3,2972.7,1.45029191]
[1766073159445,0.002,2973.3,2972.7,0.98591168]
[1766073159657,0.002,2973.3,2972.6,6.7281168]
[1766073159875,3.36237428,2974.1,2972.6,6.7281168]
[1766073159876,4.7378,2974.1,2972.8,8.33556414]
[1766073160175,4.7378,2974.1,2973.1,4.7389]
[1766073160534,4.7378,2974.1,2973.1,3.131]
[1766073160843,3.1184,2973.9,2973.0,0.551]
[1766073161176,1.6194,2973.8,2973.0,0.551]
[1766073161373,0.002,2974.3,2973.2,1.6079]
[1766073161537,0.002,2974.3,2973.7,3.131]
[1766073161743,0.002,2974.3,2973.8,3.131]
[1766073161944,1.6214,2974.8,2973.9,6.72517568]
[1766073162175,2.1724,2974.8,2973.9,7.87158325]
[1766073162471,1.6214,2974.8,2973.9,11.55358325]
[1766073162878,0.002,2974.8,2974.0,0.46438023]
[1766073163041,0.002,2974.9,2974.4,3.1553]
[1766073163345,0.002,2974.9,2974.4,1.6164]
[1766073163741,0.002,2975.3,2974.4,5.30397]
[1766073163947,1.6958,2974.8,2973.4,1.6164]
[1766073164163,0.002,2975.3,2973.5,1.01538023]
[1766073164164,1.6958,2974.4,2973.5,1.01538023]
[1766073164368,4.7849,2974.4,2973.6,0.46438023]
[1766073164775,4.7849,2974.4,2973.5,3.9139686]
[1766073164974,1.6958,2974.3,2973.5,0.551]
[1766073165271,1.6958,2974.1,2973.5,0.551]
[1766073165772,4.7849,2973.9,2973.1,3.9144517]
[1766073166382,4.7849,2973.9,2973.1,7.27794435]
[1766073166575,3.0891,2973.9,2973.1,3.9144517]
[1766073166900,4.7849,2973.8,2973.2,0.46438023]
[1766073167970,0.002,2973.9,2973.3,3.3632664]
[1766073168367,0.002,2973.9,2973.0,0.46438023]
[1766073168368,4.7849,2973.8,2973.0,0.46438023]
[1766073168572,1.6958,2973.7,2973.0,3.36356755]
[1766073168797,4.7849,2973.7,2973.0,0.46438023]
[1766073169176,0.002,2973.9,2972.8,1.01538023]
[1766073169378,4.7849,2973.5,2972.8,0.551]
[1766073169583,4.7849,2973.5,2972.9,3.36371019]
[1766073169815,4.7849,2973.5,2972.8,0.551]
[1766073170491,1.6958,2973.4,2972.8,0.551]
[1766073170682,4.7849,2973.4,2972.8,3.9148288]
[1766073170884,0.0012,2973.9,2972.9,1.6164]
[1766073171088,0.0012,2973.9,2973.0,0.03363605]
[1766073171801,0.0012,2973.9,2973.0,3.1553]
[1766073172018,0.0012,2973.9,2973.2,3.1553]
[1766073172168,0.0012,2973.9,2973.4,3.1553]
[1766073172368,0.0012,2973.9,2973.5,0.53227]
[1766073172608,0.0012,2973.9,2973.3,2.1674]
[1766073172609,1.697,2973.9,2973.3,0.551]
[1766073172793,0.0012,2973.9,2973.2,0.46438023]
[1766073173108,0.0012,2973.9,2973.3,0.46438023]
[1766073173402,0.0012,2973.9,2973.3,4.7717]
[1766073173796,0.0012,2973.9,2973.0,0.551]
[1766073174230,0.0012,2973.9,2973.2,0.46438023]
[1766073174394,4.7861,2973.9,2973.0,1.8462662]
[1766073174602,4.7849,2973.7,2973.0,0.551]
[1766073175107,4.7849,2973.7,2972.8,6.95699819]
[1766073175308,4.7849,2973.7,2972.9,3.36370662]
[1766073175309,5.81451,2973.7,2972.9,3.36370662]
[1766073175818,5.81451,2973.7,2973.0,3.36359187]
[1766073176016,1.02961,2973.7,2972.7,0.551]
[1766073176347,1.6958,2973.5,2972.2,3.62919]
[1766073176504,1.6958,2973.3,2972.5,3.36409777]
[1766073176693,4.7849,2973.3,2972.4,0.551]
[1766073176905,0.551,2973.6,2972.6,4.7717]
[1766073177121,2.2468,2973.6,2972.6,8.13565837]
[1766073177346,2.27582802,2973.6,2972.7,3.36391908]
[1766073177592,3.0891,2973.7,2972.7,3.36391908]
[1766073177593,3.6401,2973.7,2972.8,3.1553]
[1766073177831,3.0891,2973.5,2972.6,4.56907732]
[1766073178015,1.6958,2973.4,2972.6,4.56907732]
[1766073178221,4.7849,2973.4,2972.6,1.20507998]
[1766073178434,4.7849,2973.4,2972.5,3.36411353]
[1766073178653,3.0891,2973.4,2972.4,3.7063]
[1766073178826,4.7849,2973.2,2972.4,0.551]
[1766073179811,4.7849,2973.2,2972.4,3.91522848]
[1766073180037,4.7849,2973.2,2972.4,0.551]
[1766073180246,4.7849,2973.2,2972.4,3.91523971]
[1766073180447,4.7849,2973.2,2972.4,4.69059066]
[1766073180750,4.7849,2973.2,2972.4,1.32635095]
[1766073180913,4.7849,2973.2,2972.4,0.551]
[1766073181113,4.7849,2973.2,2972.4,3.91519214]
[1766073181836,4.7849,2973.2,2972.4,3.91526388]
[1766073182041,4.7849,2973.2,2972.4,0.551]
[1766073182215,4.7849,2973.2,2972.4,0.552]
[1766073182412,0.46438023,2973.7,2972.7,3.36394523]
[1766073182722,5.49048023,2973.7,2972.9,3.3451]
[1766073183219,0.0012,2973.9,2973.1,3.3451]
[1766073183424,0.002,2975.1,2973.4,1.5443]
[1766073183425,5.5771,2974.4,2973.4,1.5443]
[1766073183612,5.5771,2974.4,2973.4,4.8894]
[1766073183959,0.46438023,2974.3,2973.5,3.3451]
[1766073184316,5.0261,2974.4,2973.5,3.3451]
[1766073184624,3.9382,2974.7,2973.8,3.3451]
[1766073184834,0.55771,2974.6,2973.8,3.3451]
[1766073185132,5.0261,2974.4,2973.6,3.91388855]
[1766073185332,0.33850948,2975.1,2973.6,7.27681564]
[1766073185538,5.0261,2975.0,2974.0,4.8894]
[1766073185735,5.0261,2975.0,2974.1,3.8961]
[1766073185933,0.002,2975.1,2974.4,3.3451]
[1766073186425,0.002,2975.1,2974.2,3.36224867]
[1766073186618,0.002,2975.1,2974.2,6.72449734]
[1766073186817,0.002,2975.1,2974.3,0.72754973]
[1766073187442,0.46438023,2975.4,2974.3,0.72754973]
[1766073187639,3.36229703,2976.0,2974.8,0.405504]
[1766073187640,0.002,2976.0,2974.8,0.405504]
[1766073187847,5.0281,2976.7,2975.2,0.46438023]
[1766073188143,0.002,2976.7,2975.5,1.5443]
[1766073188344,0.50481,2976.7,2974.9,6.26652633]
[1766073188545,0.50481,2976.7,2975.1,0.46438023]
[1766073188546,5.0261,2976.2,2975.1,0.46438023]
[1766073188772,3.3872,2976.2,2975.2,3.3451]
[1766073189065,5.0261,2976.4,2975.3,4.8894]
[1766073189233,5.0261,2976.4,2975.4,0.55]
[1766073189438,5.0261,2976.4,2975.5,3.3451]
[1766073189789,1.6389,2976.4,2975.5,3.88904]
[1766073189942,0.55,2976.6,2975.6,3.3451]
[1766073190440,0.002,2976.7,2975.8,1.5443]
[1766073190678,0.002,2976.2,2975.8,5.4394]
[1766073191049,0.002,2976.2,2975.8,0.55]
[1766073191253,0.002,2976.7,2975.8,3.8951]
[1766073191451,0.002,2976.7,2976.0,1.5443]
[1766073191652,0.552,2977.0,2976.2,3.3451]
[1766073191865,0.002,2977.0,2976.4,3.3451]
[1766073192270,0.002,2977.0,2976.2,0.55]
[1766073192271,0.002,2977.4,2976.5,3.3451]
[1766073192577,0.002,2977.4,2976.6,3.3451]
[1766073192771,0.002,2977.4,2976.7,3.2802]
[1766073192772,0.77820557,2977.4,2976.7,3.2802]
[1766073193075,0.002,2977.4,2976.7,4.9189]
[1766073193571,0.002,2977.4,2976.6,3.8302]
[1766073193773,0.002,2977.4,2976.7,3.2802]
[1766073193939,3.3517,2978.4,2976.8,3.2802]
[1766073194140,3.3517,2978.4,2975.7,1.6387]
[1766073194141,3.3517,2977.3,2975.7,1.6387]
[1766073194444,0.46438023,2976.9,2975.8,6.64057999]
[1766073194664,0.46438023,2976.9,2975.9,3.2802]
[1766073194986,0.46438023,2976.7,2975.6,0.55]
[1766073195185,3.35922731,2976.9,2975.7,4.9189]
[1766073195186,0.46438023,2976.5,2975.7,4.9189]
[1766073195342,3.35922731,2976.9,2975.9,4.9189]
[1766073195343,0.55,2976.8,2975.9,4.9189]
[1766073195543,0.59467802,2976.8,2975.9,4.9189]
[1766073195939,0.59467802,2976.8,2975.9,3.2802]
[1766073196171,5.53507802,2976.8,2975.9,3.2802]
[1766073196490,5.53507802,2976.8,2975.6,4.37502108]
[1766073196676,5.53507802,2976.8,2975.6,1.01438023]
[1766073196850,0.93587557,2976.7,2975.8,3.2802]
[1766073197050,0.59467802,2976.8,2975.8,3.2802]
[1766073197251,0.59467802,2976.8,2975.8,1.6387]
[1766073197452,0.59467802,2976.8,2976.1,3.2802]
[1766073197676,4.9404,2976.7,2975.6,1.01438023]
[1766073197858,4.9404,2976.7,2975.6,7.65518645]
[1766073198181,4.9404,2976.7,2975.7,3.2802]
[1766073198341,3.3517,2976.7,2975.6,0.55]
[1766073198543,4.9404,2976.6,2975.6,0.55]
[1766073198751,0.002,2976.8,2975.6,0.55]
[1766073198752,4.9404,2976.4,2975.6,0.55]
[1766073199906,1.04404,2976.5,2975.4,3.2802]
[1766073200090,1.5887,2976.3,2975.3,1.6387]
[1766073201051,1.5887,2976.1,2975.1,3.2802]
[1766073201284,5.4904,2976.1,2975.1,3.2802]
[1766073201487,0.54904,2976.0,2974.9,0.55]
[1766073201684,3.3517,2975.8,2975.0,3.3612947]
[1766073201889,0.55,2976.1,2975.0,6.6414947]
[1766073202094,0.49404,2976.5,2975.6,3.2802]
[1766073202256,0.49404,2976.5,2975.7,3.8302]
[1766073202996,5.43444,2976.5,2975.4,3.36081139]
[1766073203209,1.5887,2976.1,2974.9,3.3613534]
[1766073203387,0.55,2976.3,2975.5,3.36077933]
[1766073203736,0.55,2976.3,2975.4,6.64104308]
[1766073204038,0.55,2976.3,2975.5,6.64097861]
[1766073204207,1.0046582,2976.3,2975.5,6.64097861]
[1766073204403,0.55,2976.4,2975.5,3.2802]
[1766073204628,0.55,2976.4,2975.5,6.64087595]
[1766073204940,1.5887,2976.1,2975.1,1.01438023]
[1766073205149,1.5887,2976.1,2975.3,3.3609878]
[1766073205318,3.3517,2976.2,2975.3,3.82537587]
[1766073205501,3.3517,2976.2,2975.5,3.36073901]
[1766073205706,0.002,2976.3,2975.3,0.92942759]
[1766073205944,0.002,2976.3,2975.3,1.6387]
[1766073206117,0.002,2976.3,2975.4,6.64102175]
[1766073206447,1.5907,2976.3,2974.8,0.46438023]
[1766073206607,4.9404,2975.8,2974.7,3.8302]
[1766073206810,0.55,2975.8,2974.9,3.2802]
[1766073207113,0.55,2975.8,2975.0,4.9189]
[1766073207314,0.55,2975.8,2975.1,3.2802]
[1766073207526,0.002,2976.3,2975.3,3.2802]
[1766073207869,3.3517,2976.1,2974.8,4.9189]
[1766073208156,0.46438023,2976.2,2974.8,3.74458023]
[1766073208157,1.5887,2975.8,2974.8,3.74458023]
[1766073208315,2.08274,2975.8,2974.9,3.2802]
[1766073208515,2.08274,2975.8,2974.9,4.9189]
[1766073208949,4.9404,2975.7,2974.7,1.01438023]
[1766073209156,4.9404,2975.7,2974.7,0.55]
[1766073209320,4.40448088,2975.8,2974.6,0.46438023]
[1766073209321,4.9404,2975.4,2974.6,0.46438023]
[1766073210143,4.9404,2975.4,2974.4,6.01504774]
[1766073210343,4.9404,2975.4,2974.6,3.82609622]
[1766073210344,1.5887,2975.4,2974.6,3.82609622]
[1766073210557,4.9404,2975.7,2974.6,0.46438023]
[1766073210733,0.549,2975.8,2975.0,3.2802]
[1766073211365,0.549,2975.8,2974.9,0.549]
[1766073211656,1.97964302,2975.7,2974.9,0.549]
[1766073212056,3.3517,2975.6,2974.9,0.549]
[1766073212232,4.9404,2975.4,2974.6,0.549]
[1766073213027,0.39094302,2975.7,2974.6,3.8292]
[1766073213372,3.3517,2975.4,2974.3,0.46438023]
[1766073213533,1.92387,2975.3,2974.4,0.46438023]
[1766073213727,0.33517,2975.3,2974.4,0.46438023]
[1766073213930,0.33517,2975.3,2974.3,3.91105056]
[1766073213931,0.39094302,2975.7,2974.8,1.6387]
[1766073214125,0.39094302,2975.7,2974.9,3.2802]
[1766073214336,1.5887,2975.5,2974.8,0.549]
[1766073214952,0.39094302,2975.7,2974.8,0.549]
[1766073214953,0.39094302,2975.7,2974.9,3.36145752]
[1766073215160,1.01338023,2975.9,2974.5,0.549]
[1766073215465,1.5887,2975.5,2974.6,0.46438023]
[1766073215628,2.1377,2975.9,2974.8,6.64174473]
[1766073215830,2.1377,2975.9,2974.6,0.46438023]
[1766073216042,1.5887,2975.7,2974.7,1.6387]
[1766073216354,3.3517,2975.8,2974.6,3.74458023]
[1766073216555,3.3517,2975.6,2974.6,4.9189]
[1766073216765,4.9404,2975.6,2974.6,4.9189]
[1766073217357,4.9404,2975.6,2974.6,3.36174133]
[1766073217358,1.5887,2975.6,2974.6,3.36174133]
[1766073217654,4.9404,2975.5,2974.5,0.549]
[1766073217858,4.9404,2975.5,2974.6,0.46438023]
[1766073218355,4.9404,2975.5,2974.6,3.2802]
[1766073218561,5.80950588,2975.5,2974.6,3.2802]
[1766073219447,3.3517,2975.3,2974.0,3.2802]
[1766073219646,1.5887,2975.2,2974.4,0.46438023]
[1766073220325,1.5879,2975.2,2974.4,0.46438023]
[1766073220726,5.43356,2975.2,2974.5,0.001]
[1766073221755,2.08186,2975.2,2974.5,0.001]
[1766073221960,3.9007,2975.5,2974.5,3.2812]
[1766073222258,3.9007,2975.5,2974.6,3.2802]
[1766073222480,3.9007,2975.5,2974.6,4.9189]
[1766073223390,3.3844,2975.1,2974.5,0.001]
[1766073223597,3.3844,2975.1,2974.0,0.46438023]
[1766073223598,4.9886,2974.8,2974.0,0.46438023]
[1766073223883,1.6042,2974.7,2974.0,0.46438023]
[1766073224887,1.6042,2974.7,2973.9,3.1885]
[1766073225059,1.6042,2974.7,2973.9,6.55106584]
[1766073225464,1.6042,2974.7,2973.8,0.001]
[1766073225465,4.9886,2974.3,2973.8,0.001]
[1766073225666,2.10306,2974.2,2973.8,0.001]
[1766073225882,0.49886,2974.2,2973.8,0.001]
[1766073226889,0.49886,2974.2,2972.6,0.001]
[1766073226890,4.9886,2974.0,2972.6,0.001]
[1766073227088,1.6042,2973.9,2972.6,3.36502404]
[1766073227254,3.3844,2974.0,2972.7,0.46438023]
[1766073227455,3.36270092,2973.8,2972.6,0.46538023]
[1766073227656,1.6042,2973.5,2972.6,0.46538023]
[1766073227958,0.549,2973.7,2972.6,0.001]
[1766073228369,4.9886,2973.4,2972.6,0.001]
[1766073228790,4.9886,2973.4,2972.6,0.46538023]
[1766073229093,0.549,2973.7,2972.6,3.82937656]
[1766073229259,0.549,2973.7,2972.8,3.1895]
[1766073229461,0.549,2973.7,2972.8,4.34683468]
[1766073229698,0.549,2973.7,2972.8,7.71064087]
[1766073230407,0.46438023,2973.5,2972.8,0.001]
[1766073230570,0.46438023,2973.5,2972.6,0.001]
[1766073230571,2.06858023,2973.5,2972.6,0.001]
[1766073230776,4.9886,2973.3,2972.6,0.001]
[1766073230976,0.49886,2973.2,2972.6,0.001]
[1766073231398,5.48746,2973.2,2972.6,0.001]
[1766073233310,4.9886,2973.6,2972.6,0.001]
[1766073233514,4.9886,2973.6,2972.6,3.1895]
[1766073233515,1.01338023,2973.5,2972.6,3.1895]
[1766073233766,3.3844,2974.1,2972.8,3.1885]
[1766073233925,3.3844,2973.9,2972.9,5.71471395]
[1766073234079,0.88744,2974.1,2972.6,1.656]
[1766073234280,0.46438023,2973.9,2972.7,3.7375]
[1766073234624,1.6042,2973.8,2972.7,3.7375]
[1766073235190,1.6042,2973.8,2972.7,0.549]
[1766073235625,1.6042,2973.8,2972.8,3.1885]
[1766073235822,1.6042,2973.8,2972.9,4.06414317]
[1766073236022,0.549,2973.9,2972.9,0.87564317]
[1766073236223,0.549,2973.9,2972.7,3.91293174]
[1766073236224,3.3844,2973.7,2972.7,3.7375]
[1766073236430,1.6042,2973.2,2972.6,0.001]
[1766073236726,0.86988423,2973.4,2971.9,1.655]
[1766073236928,0.86988423,2973.4,2971.8,0.001]
[1766073236929,3.3844,2973.0,2971.8,0.001]
[1766073237113,3.3844,2972.8,2971.8,0.001]
[1766073237317,3.3844,2972.6,2971.8,0.001]
[1766073237520,3.3844,2972.4,2971.8,0.001]